[Event "Titled Tuesday Blitz May 23 Late 2023"]
[White "Caruana, Fabiano"]
[Black "Licznerski, Lukasz"]
[WhiteFideId "2020009"]
[BlackFideId "1179250"]
[WhiteElo "2837"]
[BlackElo "2453"]
[Result "1-0"]
[Round "04"]
[TimeControl "180+2"]
[Date "2023.05.23"]
[WhiteClock "0:00:05"]
[BlackClock "0:00:00"]

1. d4 {[%clk 0:03:00]}  Nf6 {[%clk 0:03:00]} 2. Nf3 {[%clk 0:03:01]}  e6 {[%clk 0:02:59]} 3. g3 {[%clk 0:03:01]}  c5 {[%clk 0:02:57]} 4. Bg2 {[%clk 0:03:01]}  cxd4 {[%clk 0:02:57]} 5. O-O {[%clk 0:02:59]}  Nc6 {[%clk 0:02:56]} 6. Nxd4 {[%clk 0:02:58]}  d5 {[%clk 0:02:47]} 7. c4 {[%clk 0:02:56]}  Bc5 {[%clk 0:02:33]} 8. Nb3 {[%clk 0:02:54]}  Be7 {[%clk 0:02:32]} 9. cxd5 {[%clk 0:02:40]}  exd5 {[%clk 0:02:08]} 10. Nc3 {[%clk 0:02:38]}  Be6 {[%clk 0:02:09]} 11. Be3 {[%clk 0:02:21]}  O-O {[%clk 0:02:03]} 12. Rc1 {[%clk 0:02:21]}  Ne5 {[%clk 0:01:45]} 13. Bd4 {[%clk 0:02:16]}  Nc6 {[%clk 0:01:35]} 14. Bc5 {[%clk 0:02:06]}  Bxc5 {[%clk 0:01:33]} 15. Nxc5 {[%clk 0:02:07]}  Qb6 {[%clk 0:01:33]} 16. N3a4 {[%clk 0:02:04]}  Qb5 {[%clk 0:01:24]} 17. Qd3 {[%clk 0:01:41]}  Qxd3 {[%clk 0:01:19]} 18. Nxd3 {[%clk 0:01:42]}  Rad8 {[%clk 0:01:10]} 19. Rfd1 {[%clk 0:01:31]}  Rfe8 {[%clk 0:01:06]} 20. Nac5 {[%clk 0:01:22]}  Bc8 {[%clk 0:01:04]} 21. e3 {[%clk 0:01:21]}  g5 {[%clk 0:00:52]} 22. b4 {[%clk 0:01:06]}  Kg7 {[%clk 0:00:28]} 23. a4 {[%clk 0:00:59]}  d4 {[%clk 0:00:28]} 24. e4 {[%clk 0:00:52]}  b6 {[%clk 0:00:23]} 25. Nb3 {[%clk 0:00:51]}  Be6 {[%clk 0:00:23]} 26. Nd2 {[%clk 0:00:50]}  Rc8 {[%clk 0:00:18]} 27. e5 {[%clk 0:00:47]}  Nd5 {[%clk 0:00:18]} 28. Ne4 {[%clk 0:00:47]}  Nc3 {[%clk 0:00:14]} 29. Re1 {[%clk 0:00:25]}  Nxe4 {[%clk 0:00:14]} 30. Bxe4 {[%clk 0:00:26]}  Ne7 {[%clk 0:00:12]} 31. b5 {[%clk 0:00:20]}  Bb3 {[%clk 0:00:07]} 32. Ra1 {[%clk 0:00:18]}  Rc3 {[%clk 0:00:07]} 33. Nb4 {[%clk 0:00:17]}  Rec8 {[%clk 0:00:06]} 34. Nc6 {[%clk 0:00:17]}  Nxc6 {[%clk 0:00:06]} 35. Bxc6 {[%clk 0:00:16]}  d3 {[%clk 0:00:06]} 36. Re3 {[%clk 0:00:16]}  Rc7 {[%clk 0:00:02]} 37. Kf1 {[%clk 0:00:15]}  Bc2 {[%clk 0:00:02]} 38. Ke1 {[%clk 0:00:16]}  Rc4 {[%clk 0:00:02]} 39. Kd2 {[%clk 0:00:15]}  Rc5 {[%clk 0:00:02]} 40. f4 {[%clk 0:00:15]}  h6 {[%clk 0:00:02]} 41. f5 {[%clk 0:00:15]}  Kf8 {[%clk 0:00:02]} 42. f6 {[%clk 0:00:15]}  Rc8 {[%clk 0:00:01]} 43. h4 {[%clk 0:00:12]}  gxh4 {[%clk 0:00:01]} 44. gxh4 {[%clk 0:00:13]}  R8xc6 {[%clk 0:00:01]} 45. bxc6 {[%clk 0:00:13]}  Rxc6 {[%clk 0:00:02]} 46. Rg3 {[%clk 0:00:12]}  Re6 {[%clk 0:00:01]} 47. Rag1 {[%clk 0:00:12]}  Ke8 {[%clk 0:00:01]} 48. Rg8+ {[%clk 0:00:12]}  Kd7 {[%clk 0:00:02]} 49. Rf8 {[%clk 0:00:08]}  Rxe5 {[%clk 0:00:02]} 50. Rxf7+ {[%clk 0:00:08]}  Kd6 {[%clk 0:00:02]} 51. Rf8 {[%clk 0:00:09]}  Rf5 {[%clk 0:00:03]} 52. Rg7 {[%clk 0:00:06]}  Rf2+ {[%clk 0:00:02]} 53. Kc3 {[%clk 0:00:06]}  Rf5 {[%clk 0:00:02]} 54. Re7 {[%clk 0:00:05]}  Rxf6 {[%clk 0:00:02]} 55. Rxf6+ {[%clk 0:00:06]}  Kxe7 {[%clk 0:00:03]} 56. Rxh6 {[%clk 0:00:06]}  Bxa4 {[%clk 0:00:02]} 57. Kxd3 {[%clk 0:00:07]}  Kf7 {[%clk 0:00:02]} 58. Rh7+ {[%clk 0:00:07]}  Kg6 {[%clk 0:00:03]} 59. Rxa7 {[%clk 0:00:08]}  Bc6 {[%clk 0:00:02]} 60. Ra1 {[%clk 0:00:05]}  Kh5 {[%clk 0:00:02]} 61. Rc1 {[%clk 0:00:05]}  Bd7 {[%clk 0:00:01]} 62. Rc7 {[%clk 0:00:04]}  Bg4 {[%clk 0:00:01]} 63. Ke3 {[%clk 0:00:05]}  Kxh4 {[%clk 0:00:01]} 64. Kf4 {[%clk 0:00:06]}  Bh5 {[%clk 0:00:01]} 65. Rb7 {[%clk 0:00:06]}  Kh3 {[%clk 0:00:01]} 66. Rh7 {[%clk 0:00:05]}  Kh4 {[%clk 0:00:01]} 67. Rh6 {[%clk 0:00:06]}  b5 {[%clk 0:00:01]} 68. Rb6 {[%clk 0:00:07]}  b4 {[%clk 0:00:01]} 69. Rxb4 {[%clk 0:00:07]}  Kh3 {[%clk 0:00:02]} 70. Rb2 {[%clk 0:00:07]}  Bd1 {[%clk 0:00:01]} 71. Rd2 {[%clk 0:00:07]}  Bh5 {[%clk 0:00:02]} 72. Rf2 {[%clk 0:00:06]}  Bg4 {[%clk 0:00:02]} 73. Rf1 {[%clk 0:00:05]}  Be2 {[%clk 0:00:02]} 74. Re1 {[%clk 0:00:06]}  Bc4 {[%clk 0:00:01]} 75. Rc1 {[%clk 0:00:06]}  Bb5 {[%clk 0:00:01]} 76. Rc5 {[%clk 0:00:06]}  Bd3 {[%clk 0:00:01]} 77. Rd5 {[%clk 0:00:06]}  Bf1 {[%clk 0:00:01]} 78. Rd2 {[%clk 0:00:05]}  Ba6 {[%clk 0:00:02]} 79. Rd6 {[%clk 0:00:04]}  Bb5 {[%clk 0:00:02]} 80. Kf3 {[%clk 0:00:03]}  Kh4 {[%clk 0:00:02]} 81. Kf4 {[%clk 0:00:03]}  Kh3 {[%clk 0:00:02]} 82. Rd4 {[%clk 0:00:04]}  Kg2 {[%clk 0:00:01]} 83. Rd2+ {[%clk 0:00:05]}  Kf1 {[%clk 0:00:02]} 84. Ke3 {[%clk 0:00:05]}  Kg1 {[%clk 0:00:01]} 85. Kf3 {[%clk 0:00:05]}  Bc6+ {[%clk 0:00:02]} 86. Kg3 {[%clk 0:00:05]}  Kf1 {[%clk 0:00:02]} 87. Kf4 {[%clk 0:00:05]}  Bb7 {[%clk 0:00:02]} 88. Ke3 {[%clk 0:00:06]}  Kg1 {[%clk 0:00:02]} 89. Rb2 {[%clk 0:00:06]}  Bc6 {[%clk 0:00:02]} 90. Rf2 {[%clk 0:00:06]}  Bd5 {[%clk 0:00:03]} 91. Rf5 {[%clk 0:00:06]}  Bc6 {[%clk 0:00:03]} 92. Rf6 {[%clk 0:00:06]}  Bb7 {[%clk 0:00:03]} 93. Ke2 {[%clk 0:00:06]}  Ba8 {[%clk 0:00:03]} 94. Rg6+ {[%clk 0:00:06]}  Kh2 {[%clk 0:00:04]} 95. Kf2 {[%clk 0:00:07]}  Kh3 {[%clk 0:00:04]} 96. Rg8 {[%clk 0:00:07]}  Bb7 {[%clk 0:00:04]} 97. Rg7 {[%clk 0:00:07]}  Bc6 {[%clk 0:00:05]} 98. Rc7 {[%clk 0:00:06]}  Bd5 {[%clk 0:00:05]} 99. Rc5 {[%clk 0:00:07]}  Ba8 {[%clk 0:00:06]} 100. Rg5 {[%clk 0:00:06]}  Bb7 {[%clk 0:00:06]} 101. Rg7 {[%clk 0:00:07]}  Bc6 {[%clk 0:00:06]} 102. Ke3 {[%clk 0:00:07]}  Bd5 {[%clk 0:00:06]} 103. Kf4 {[%clk 0:00:07]}  Kh2 {[%clk 0:00:06]} 104. Rg5 {[%clk 0:00:07]}  Bb7 {[%clk 0:00:06]} 105. Rb5 {[%clk 0:00:06]}  Ba8 {[%clk 0:00:06]} 106. Rb2+ {[%clk 0:00:06]}  Kg1 {[%clk 0:00:04]} 107. Ra2 {[%clk 0:00:06]}  Bb7 {[%clk 0:00:03]} 108. Ra7 {[%clk 0:00:06]}  Bc6 {[%clk 0:00:04]} 109. Rf7 {[%clk 0:00:06]}  Ba8 {[%clk 0:00:03]} 110. Kg3 {[%clk 0:00:05]}  Bc6 {[%clk 0:00:03]} 111. Rc7 {[%clk 0:00:04]}  Bg2 {[%clk 0:00:02]} 112. Rc1+ {[%clk 0:00:05]}  Bf1 {[%clk 0:00:00]} 113. Ra1 {[%clk 0:00:05]} 1-0


[Site "https://www.chess.com"]

[Event "Titled Tuesday Blitz May 23 Late 2023"]
[White "Rostovtsev, Dmitry"]
[Black "Sarana, Alexey"]
[WhiteFideId "34278320"]
[BlackFideId "24133795"]
[WhiteElo "2344"]
[BlackElo "2714"]
[Result "0-1"]
[Round "04"]
[TimeControl "180+2"]
[Date "2023.05.23"]
[WhiteClock "0:00:01"]
[BlackClock "0:00:15"]

1. e4 {[%clk 0:03:00]}  c5 {[%clk 0:02:57]} 2. Nf3 {[%clk 0:03:01]}  d6 {[%clk 0:02:57]} 3. d4 {[%clk 0:03:01]}  cxd4 {[%clk 0:02:58]} 4. Qxd4 {[%clk 0:03:02]}  Nc6 {[%clk 0:02:58]} 5. Qd3 {[%clk 0:03:02]}  Bg4 {[%clk 0:02:55]} 6. Nc3 {[%clk 0:03:02]}  Nf6 {[%clk 0:02:55]} 7. Be2 {[%clk 0:03:01]}  e6 {[%clk 0:02:54]} 8. Bf4 {[%clk 0:02:59]}  Qb6 {[%clk 0:02:46]} 9. O-O {[%clk 0:02:52]}  Be7 {[%clk 0:02:42]} 10. Rfd1 {[%clk 0:02:07]}  O-O {[%clk 0:02:36]} 11. a3 {[%clk 0:02:07]}  Rfd8 {[%clk 0:02:34]} 12. h3 {[%clk 0:02:02]}  Bh5 {[%clk 0:02:32]} 13. Be3 {[%clk 0:01:54]}  Qc7 {[%clk 0:02:30]} 14. Rd2 {[%clk 0:01:19]}  Rac8 {[%clk 0:02:03]} 15. Rad1 {[%clk 0:01:14]}  Bxf3 {[%clk 0:01:59]} 16. Bxf3 {[%clk 0:01:14]}  Ne5 {[%clk 0:01:59]} 17. Qe2 {[%clk 0:01:14]}  Nc4 {[%clk 0:01:59]} 18. Nb5 {[%clk 0:01:10]}  Qa5 {[%clk 0:01:56]} 19. Nxa7 {[%clk 0:00:50]}  Nxd2 {[%clk 0:01:56]} 20. Qxd2 {[%clk 0:00:47]}  Qxd2 {[%clk 0:01:55]} 21. Rxd2 {[%clk 0:00:48]}  Ra8 {[%clk 0:01:49]} 22. Bb6 {[%clk 0:00:46]}  Rf8 {[%clk 0:01:45]} 23. Nb5 {[%clk 0:00:47]}  Ra6 {[%clk 0:01:41]} 24. Be3 {[%clk 0:00:37]}  Nd7 {[%clk 0:01:24]} 25. Be2 {[%clk 0:00:35]}  Nf6 {[%clk 0:01:16]} 26. f3 {[%clk 0:00:33]}  d5 {[%clk 0:01:06]} 27. Nc3 {[%clk 0:00:33]}  Rc6 {[%clk 0:01:04]} 28. exd5 {[%clk 0:00:25]}  Nxd5 {[%clk 0:01:05]} 29. Nxd5 {[%clk 0:00:25]}  exd5 {[%clk 0:01:06]} 30. c3 {[%clk 0:00:23]}  Bc5 {[%clk 0:01:00]} 31. Kf2 {[%clk 0:00:23]}  Re8 {[%clk 0:00:55]} 32. Bxc5 {[%clk 0:00:21]}  Rxc5 {[%clk 0:00:56]} 33. Rd4 {[%clk 0:00:20]}  g6 {[%clk 0:00:51]} 34. Rb4 {[%clk 0:00:19]}  Re7 {[%clk 0:00:51]} 35. Bd3 {[%clk 0:00:20]}  h5 {[%clk 0:00:50]} 36. g4 {[%clk 0:00:19]}  Kg7 {[%clk 0:00:47]} 37. a4 {[%clk 0:00:13]}  Kh6 {[%clk 0:00:46]} 38. f4 {[%clk 0:00:05]}  f6 {[%clk 0:00:36]} 39. Rd4 {[%clk 0:00:04]}  g5 {[%clk 0:00:29]} 40. f5 {[%clk 0:00:04]}  h4 {[%clk 0:00:25]} 41. Bf1 {[%clk 0:00:04]}  Re5 {[%clk 0:00:24]} 42. Bg2 {[%clk 0:00:04]}  Kg7 {[%clk 0:00:24]} 43. Bf3 {[%clk 0:00:04]}  Kf8 {[%clk 0:00:23]} 44. Rb4 {[%clk 0:00:04]}  Rc4 {[%clk 0:00:12]} 45. Rxc4 {[%clk 0:00:01]}  dxc4 {[%clk 0:00:13]} 46. Bxb7 {[%clk 0:00:02]}  Ra5 {[%clk 0:00:12]} 47. Bc6 {[%clk 0:00:02]}  Ke7 {[%clk 0:00:12]} 48. Bb5 {[%clk 0:00:02]}  Kd6 {[%clk 0:00:13]} 49. Ke3 {[%clk 0:00:02]}  Kc5 {[%clk 0:00:13]} 50. Kd2 {[%clk 0:00:01]}  Ra7 {[%clk 0:00:13]} 51. Ke3 {[%clk 0:00:01]}  Re7+ {[%clk 0:00:14]} 52. Kf2 {[%clk 0:00:02]}  Re5 {[%clk 0:00:14]} 53. Bd7 {[%clk 0:00:01]}  Rd5 {[%clk 0:00:14]} 54. Be6 {[%clk 0:00:01]}  Rd2+ {[%clk 0:00:14]} 55. Ke3 {[%clk 0:00:02]}  Rxb2 {[%clk 0:00:14]} 56. Bd7 {[%clk 0:00:02]}  Rh2 {[%clk 0:00:14]} 57. Ke4 {[%clk 0:00:02]}  Rxh3 {[%clk 0:00:14]} 58. a5 {[%clk 0:00:03]}  Rxc3 {[%clk 0:00:14]} 59. a6 {[%clk 0:00:01]}  Ra3 {[%clk 0:00:15]} 0-1


[Site "https://www.chess.com"]

[Event "Titled Tuesday Blitz May 23 Late 2023"]
[White "Fernandez Guillen, Ernesto J."]
[Black "Sjugirov, Sanan"]
[WhiteFideId "3512428"]
[BlackFideId "4189302"]
[WhiteElo "2429"]
[BlackElo "2569"]
[Result "1-0"]
[Round "04"]
[TimeControl "180+2"]
[Date "2023.05.23"]
[WhiteClock "0:01:04"]
[BlackClock "0:00:00"]

1. e4 {[%clk 0:03:00]}  c5 {[%clk 0:03:00]} 2. Nf3 {[%clk 0:02:39]}  d6 {[%clk 0:03:00]} 3. d4 {[%clk 0:02:38]}  cxd4 {[%clk 0:03:01]} 4. Nxd4 {[%clk 0:02:38]}  Nf6 {[%clk 0:03:01]} 5. Nc3 {[%clk 0:02:39]}  a6 {[%clk 0:03:02]} 6. Bc4 {[%clk 0:02:39]}  e6 {[%clk 0:03:02]} 7. Bb3 {[%clk 0:02:40]}  Nbd7 {[%clk 0:02:58]} 8. Bg5 {[%clk 0:02:40]}  Nc5 {[%clk 0:02:56]} 9. f4 {[%clk 0:02:40]}  Be7 {[%clk 0:02:50]} 10. Qe2 {[%clk 0:02:40]}  h6 {[%clk 0:02:34]} 11. Bxf6 {[%clk 0:02:39]}  Bxf6 {[%clk 0:02:33]} 12. O-O-O {[%clk 0:02:39]}  Qc7 {[%clk 0:02:06]} 13. Rhe1 {[%clk 0:02:32]}  O-O {[%clk 0:02:01]} 14. g4 {[%clk 0:02:28]}  b5 {[%clk 0:01:55]} 15. g5 {[%clk 0:02:28]}  hxg5 {[%clk 0:01:54]} 16. e5 {[%clk 0:02:28]}  dxe5 {[%clk 0:01:47]} 17. fxe5 {[%clk 0:02:29]}  Be7 {[%clk 0:01:46]} 18. h4 {[%clk 0:02:30]}  Bb7 {[%clk 0:01:34]} 19. Kb1 {[%clk 0:02:26]}  b4 {[%clk 0:01:24]} 20. hxg5 {[%clk 0:02:24]}  bxc3 {[%clk 0:01:09]} 21. Qh5 {[%clk 0:02:10]}  Bxg5 {[%clk 0:00:19]} 22. Qxg5 {[%clk 0:02:00]}  Ne4 {[%clk 0:00:19]} 23. Rxe4 {[%clk 0:01:54]}  Bxe4 {[%clk 0:00:20]} 24. Rg1 {[%clk 0:01:49]}  g6 {[%clk 0:00:09]} 25. Qf4 {[%clk 0:01:33]}  Qb7 {[%clk 0:00:06]} 26. Rg3 {[%clk 0:01:10]}  Rad8 {[%clk 0:00:03]} 27. bxc3 {[%clk 0:01:07]}  Bf5 {[%clk 0:00:02]} 28. Nxf5 {[%clk 0:01:05]}  exf5 {[%clk 0:00:00]} 29. Rxg6+ {[%clk 0:01:04]} 1-0


[Site "https://www.chess.com"]

[Event "Titled Tuesday Blitz May 23 Late 2023"]
[White "Milikow, Yoav"]
[Black "Kramnik, Vladimir"]
[WhiteFideId "2822237"]
[BlackFideId "4101588"]
[WhiteElo "2410"]
[BlackElo "2703"]
[Result "0-1"]
[Round "04"]
[TimeControl "180+2"]
[Date "2023.05.23"]
[WhiteClock "0:00:00"]
[BlackClock "0:00:32"]

1. d4 {[%clk 0:03:00]}  d5 {[%clk 0:02:58]} 2. c4 {[%clk 0:03:00]}  c6 {[%clk 0:02:59]} 3. Nf3 {[%clk 0:03:00]}  Nf6 {[%clk 0:02:59]} 4. g3 {[%clk 0:03:00]}  Bg4 {[%clk 0:02:56]} 5. Ne5 {[%clk 0:02:58]}  Bf5 {[%clk 0:02:56]} 6. cxd5 {[%clk 0:02:58]}  Qxd5 {[%clk 0:02:55]} 7. f3 {[%clk 0:02:55]}  Bxb1 {[%clk 0:02:53]} 8. Rxb1 {[%clk 0:02:55]}  Qxa2 {[%clk 0:02:52]} 9. Bd2 {[%clk 0:02:53]}  Nbd7 {[%clk 0:02:50]} 10. e4 {[%clk 0:02:29]}  Nxe5 {[%clk 0:02:48]} 11. dxe5 {[%clk 0:02:30]}  Nd7 {[%clk 0:02:48]} 12. Bc3 {[%clk 0:02:29]}  Nb6 {[%clk 0:02:22]} 13. Ra1 {[%clk 0:02:22]}  Qe6 {[%clk 0:02:20]} 14. h4 {[%clk 0:02:05]}  Qd7 {[%clk 0:02:00]} 15. Qb3 {[%clk 0:02:02]}  e6 {[%clk 0:01:28]} 16. Rh2 {[%clk 0:01:05]}  Qc7 {[%clk 0:01:18]} 17. Rd2 {[%clk 0:00:37]}  Be7 {[%clk 0:01:17]} 18. f4 {[%clk 0:00:18]}  O-O {[%clk 0:01:14]} 19. Be2 {[%clk 0:00:17]}  Nd7 {[%clk 0:01:09]} 20. Rad1 {[%clk 0:00:12]}  Rfd8 {[%clk 0:01:05]} 21. Qc2 {[%clk 0:00:11]}  a5 {[%clk 0:01:00]} 22. Bg4 {[%clk 0:00:10]}  Nf8 {[%clk 0:00:54]} 23. Rxd8 {[%clk 0:00:06]}  Rxd8 {[%clk 0:00:53]} 24. Rxd8 {[%clk 0:00:05]}  Qxd8 {[%clk 0:00:52]} 25. Qa4 {[%clk 0:00:06]}  Qb6 {[%clk 0:00:49]} 26. Qxa5 {[%clk 0:00:04]}  Qg1+ {[%clk 0:00:47]} 27. Kd2 {[%clk 0:00:03]}  Qxg3 {[%clk 0:00:47]} 28. Be2 {[%clk 0:00:03]}  Qxf4+ {[%clk 0:00:46]} 29. Kd3 {[%clk 0:00:03]}  Qxh4 {[%clk 0:00:43]} 30. Qc7 {[%clk 0:00:03]}  b5 {[%clk 0:00:35]} 31. Qxc6 {[%clk 0:00:03]}  Qg3+ {[%clk 0:00:33]} 32. Kc2 {[%clk 0:00:02]}  Qf2 {[%clk 0:00:31]} 33. Qxb5 {[%clk 0:00:00]}  h5 {[%clk 0:00:32]} 0-1


[Site "https://www.chess.com"]

[Event "Titled Tuesday Blitz May 23 Late 2023"]
[White "Sieciechowicz, Marcin"]
[Black "Rasulov, Vugar"]
[WhiteFideId "1130170"]
[BlackFideId "13402390"]
[WhiteElo "2302"]
[BlackElo "2509"]
[Result "0-1"]
[Round "04"]
[TimeControl "180+2"]
[Date "2023.05.23"]
[WhiteClock "0:00:00"]
[BlackClock "0:00:19"]

1. d4 {[%clk 0:03:00]}  Nf6 {[%clk 0:03:00]} 2. c4 {[%clk 0:03:01]}  e6 {[%clk 0:03:00]} 3. Nc3 {[%clk 0:03:01]}  Bb4 {[%clk 0:02:59]} 4. Qc2 {[%clk 0:03:02]}  O-O {[%clk 0:02:59]} 5. Nf3 {[%clk 0:03:02]}  c5 {[%clk 0:02:56]} 6. dxc5 {[%clk 0:03:03]}  Na6 {[%clk 0:02:56]} 7. g3 {[%clk 0:03:04]}  Nxc5 {[%clk 0:02:55]} 8. Bg2 {[%clk 0:03:04]}  b6 {[%clk 0:02:53]} 9. O-O {[%clk 0:03:03]}  Bb7 {[%clk 0:02:53]} 10. Nb5 {[%clk 0:03:02]}  Nce4 {[%clk 0:02:52]} 11. Ng5 {[%clk 0:02:57]}  d5 {[%clk 0:02:50]} 12. Nxe4 {[%clk 0:02:57]}  Nxe4 {[%clk 0:02:47]} 13. a3 {[%clk 0:02:56]}  Be7 {[%clk 0:02:47]} 14. cxd5 {[%clk 0:02:19]}  exd5 {[%clk 0:02:47]} 15. Rd1 {[%clk 0:02:18]}  Rc8 {[%clk 0:02:36]} 16. Qb1 {[%clk 0:02:07]}  Qe8 {[%clk 0:02:18]} 17. Nd4 {[%clk 0:01:53]}  Bf6 {[%clk 0:02:11]} 18. Be3 {[%clk 0:01:52]}  Qa4 {[%clk 0:02:04]} 19. b3 {[%clk 0:01:23]}  Qa5 {[%clk 0:01:51]} 20. b4 {[%clk 0:01:03]}  Qa4 {[%clk 0:01:48]} 21. Bxe4 {[%clk 0:01:01]}  dxe4 {[%clk 0:01:49]} 22. Qb2 {[%clk 0:00:56]}  Rfd8 {[%clk 0:01:46]} 23. Rac1 {[%clk 0:00:51]}  h5 {[%clk 0:01:46]} 24. h4 {[%clk 0:00:48]}  Kh7 {[%clk 0:01:40]} 25. Kh2 {[%clk 0:00:27]}  Rd5 {[%clk 0:01:28]} 26. Rd2 {[%clk 0:00:15]}  Qd7 {[%clk 0:01:18]} 27. Rcd1 {[%clk 0:00:06]}  Rd8 {[%clk 0:01:15]} 28. Qc2 {[%clk 0:00:04]}  Qg4 {[%clk 0:01:09]} 29. Qc7 {[%clk 0:00:01]}  R8d7 {[%clk 0:01:02]} 30. Qf4 {[%clk 0:00:02]}  Qg6 {[%clk 0:00:58]} 31. Nb3 {[%clk 0:00:01]}  Be5 {[%clk 0:00:23]} 32. Qg5 {[%clk 0:00:01]}  Qxg5 {[%clk 0:00:21]} 33. Bxg5 {[%clk 0:00:01]}  f6 {[%clk 0:00:20]} 34. Rxd5 {[%clk 0:00:00]}  Rxd5 {[%clk 0:00:19]} 0-1


[Site "https://www.chess.com"]

[Event "Titled Tuesday Blitz May 23 Late 2023"]
[White "Gritsenko, Nikolai"]
[Black "Xiong, Jeffery"]
[WhiteFideId "14112493"]
[BlackFideId "2047640"]
[WhiteElo "2389"]
[BlackElo "2726"]
[Result "0-1"]
[Round "04"]
[TimeControl "180+2"]
[Date "2023.05.23"]
[WhiteClock "0:00:10"]
[BlackClock "0:00:49"]

1. b3 {[%clk 0:03:00]}  d5 {[%clk 0:02:59]} 2. Bb2 {[%clk 0:03:00]}  Bf5 {[%clk 0:02:59]} 3. Nf3 {[%clk 0:03:00]}  e6 {[%clk 0:02:58]} 4. e3 {[%clk 0:02:58]}  Nf6 {[%clk 0:02:50]} 5. Be2 {[%clk 0:02:58]}  h6 {[%clk 0:02:50]} 6. h3 {[%clk 0:02:56]}  Be7 {[%clk 0:02:51]} 7. c4 {[%clk 0:02:53]}  a5 {[%clk 0:02:49]} 8. Nc3 {[%clk 0:02:51]}  c6 {[%clk 0:02:50]} 9. d4 {[%clk 0:02:42]}  Nbd7 {[%clk 0:02:46]} 10. Bd3 {[%clk 0:02:38]}  O-O {[%clk 0:02:15]} 11. Bxf5 {[%clk 0:02:34]}  exf5 {[%clk 0:02:16]} 12. Qd3 {[%clk 0:02:18]}  g6 {[%clk 0:02:16]} 13. g4 {[%clk 0:02:01]}  fxg4 {[%clk 0:02:17]} 14. hxg4 {[%clk 0:02:01]}  Nxg4 {[%clk 0:02:18]} 15. cxd5 {[%clk 0:01:55]}  cxd5 {[%clk 0:02:19]} 16. Nxd5 {[%clk 0:01:54]}  Ndf6 {[%clk 0:02:15]} 17. Nf4 {[%clk 0:01:50]}  Qe8 {[%clk 0:01:35]} 18. Ne5 {[%clk 0:01:20]}  Rd8 {[%clk 0:01:27]} 19. Nxg4 {[%clk 0:01:08]}  Nxg4 {[%clk 0:01:28]} 20. Qe2 {[%clk 0:00:58]}  Bb4+ {[%clk 0:01:21]} 21. Kf1 {[%clk 0:00:47]}  Qe4 {[%clk 0:01:14]} 22. Rh4 {[%clk 0:00:41]}  h5 {[%clk 0:01:14]} 23. Rc1 {[%clk 0:00:35]}  Bd6 {[%clk 0:01:12]} 24. Ng2 {[%clk 0:00:31]}  Nh2+ {[%clk 0:01:09]} 25. Rxh2 {[%clk 0:00:27]}  Bxh2 {[%clk 0:01:10]} 26. f3 {[%clk 0:00:28]}  Qe7 {[%clk 0:01:04]} 27. e4 {[%clk 0:00:28]}  h4 {[%clk 0:01:01]} 28. Ne3 {[%clk 0:00:25]}  Bf4 {[%clk 0:01:01]} 29. d5 {[%clk 0:00:24]}  Qg5 {[%clk 0:01:00]} 30. Rc3 {[%clk 0:00:23]}  Be5 {[%clk 0:00:57]} 31. Rc2 {[%clk 0:00:21]}  Rc8 {[%clk 0:00:56]} 32. Bxe5 {[%clk 0:00:20]}  Rxc2 {[%clk 0:00:53]} 33. Nxc2 {[%clk 0:00:17]}  Qxe5 {[%clk 0:00:54]} 34. Qf2 {[%clk 0:00:16]}  Rc8 {[%clk 0:00:54]} 35. Ne3 {[%clk 0:00:16]}  h3 {[%clk 0:00:52]} 36. Nc4 {[%clk 0:00:14]}  Qa1+ {[%clk 0:00:49]} 37. Ke2 {[%clk 0:00:13]}  Qxa2+ {[%clk 0:00:50]} 38. Nd2 {[%clk 0:00:10]}  Rc2 {[%clk 0:00:49]} 0-1


[Site "https://www.chess.com"]

[Event "Titled Tuesday Blitz May 23 Late 2023"]
[White "Drygalov, Sergey"]
[Black "Simonian, Hrair"]
[WhiteFideId "24171743"]
[BlackFideId "13302337"]
[WhiteElo "2533"]
[BlackElo "2447"]
[Result "0-1"]
[Round "04"]
[TimeControl "180+2"]
[Date "2023.05.23"]
[WhiteClock "0:00:01"]
[BlackClock "0:00:08"]

1. d4 {[%clk 0:03:00]}  Nf6 {[%clk 0:02:59]} 2. c4 {[%clk 0:03:01]}  b6 {[%clk 0:02:57]} 3. f3 {[%clk 0:02:59]}  e6 {[%clk 0:02:48]} 4. e4 {[%clk 0:02:59]}  Bb4+ {[%clk 0:02:48]} 5. Bd2 {[%clk 0:02:58]}  Bxd2+ {[%clk 0:02:46]} 6. Qxd2 {[%clk 0:02:59]}  d6 {[%clk 0:02:46]} 7. Nc3 {[%clk 0:02:58]}  Bb7 {[%clk 0:02:44]} 8. Bd3 {[%clk 0:02:58]}  e5 {[%clk 0:02:39]} 9. Nge2 {[%clk 0:02:58]}  Nc6 {[%clk 0:02:36]} 10. d5 {[%clk 0:02:57]}  Ne7 {[%clk 0:02:36]} 11. h4 {[%clk 0:02:55]}  h5 {[%clk 0:02:30]} 12. O-O-O {[%clk 0:02:47]}  Qd7 {[%clk 0:02:20]} 13. Ng3 {[%clk 0:02:46]}  O-O-O {[%clk 0:02:15]} 14. Kb1 {[%clk 0:02:45]}  Kb8 {[%clk 0:02:11]} 15. Bc2 {[%clk 0:02:45]}  c5 {[%clk 0:02:01]} 16. dxc6 {[%clk 0:02:32]}  Nxc6 {[%clk 0:02:01]} 17. Nf5 {[%clk 0:02:32]}  Ne8 {[%clk 0:01:52]} 18. Ba4 {[%clk 0:02:22]}  g6 {[%clk 0:01:49]} 19. Ne3 {[%clk 0:02:21]}  Qe6 {[%clk 0:01:44]} 20. Bxc6 {[%clk 0:02:18]}  Bxc6 {[%clk 0:01:45]} 21. Ncd5 {[%clk 0:02:18]}  Nc7 {[%clk 0:01:41]} 22. Nxc7 {[%clk 0:02:17]}  Kxc7 {[%clk 0:01:42]} 23. Qb4 {[%clk 0:02:17]}  f5 {[%clk 0:01:39]} 24. Nd5+ {[%clk 0:02:12]}  Kb7 {[%clk 0:01:38]} 25. a4 {[%clk 0:01:24]}  fxe4 {[%clk 0:01:31]} 26. fxe4 {[%clk 0:01:25]}  Qg4 {[%clk 0:01:26]} 27. Rhe1 {[%clk 0:01:25]}  Bxd5 {[%clk 0:01:13]} 28. cxd5 {[%clk 0:01:22]}  a5 {[%clk 0:01:10]} 29. Qa3 {[%clk 0:00:55]}  Rhf8 {[%clk 0:01:01]} 30. Rc1 {[%clk 0:00:45]}  Rc8 {[%clk 0:00:49]} 31. Qxd6 {[%clk 0:00:26]}  Rxc1+ {[%clk 0:00:47]} 32. Kxc1 {[%clk 0:00:26]}  Rc8+ {[%clk 0:00:46]} 33. Kb1 {[%clk 0:00:26]}  Qxg2 {[%clk 0:00:42]} 34. Qa3 {[%clk 0:00:18]}  Qc2+ {[%clk 0:00:37]} 35. Ka1 {[%clk 0:00:18]}  Rc4 {[%clk 0:00:38]} 36. Qe7+ {[%clk 0:00:05]}  Ka6 {[%clk 0:00:35]} 37. Re3 {[%clk 0:00:05]}  Qc1+ {[%clk 0:00:30]} 38. Ka2 {[%clk 0:00:06]}  Qxe3 {[%clk 0:00:28]} 39. Qe8 {[%clk 0:00:06]}  Kb7 {[%clk 0:00:18]} 40. d6 {[%clk 0:00:06]}  Qxe4 {[%clk 0:00:13]} 41. Qd7+ {[%clk 0:00:04]}  Ka6 {[%clk 0:00:11]} 42. Qb5+ {[%clk 0:00:04]}  Ka7 {[%clk 0:00:11]} 43. Ka3 {[%clk 0:00:02]}  Qc6 {[%clk 0:00:10]} 44. d7 {[%clk 0:00:01]}  Qxb5 {[%clk 0:00:09]} 45. d8=Q {[%clk 0:00:01]}  Qxa4# {[%clk 0:00:08]} 0-1


[Site "https://www.chess.com"]